[Event "*** Titled Tuesday 3|2 Blitz"]
[Site "Chess.com"]
[Date "2016.09.06"]
[Round "3"]
[White "wonderfultime"]
[Black "andretta"]
[Result "1-0"]
[WhiteElo "2656"]
[BlackElo "2269"]
[TimeControl "180+2"]
[EndTime "11:35:29 PDT"]
[Termination "wonderfultime won by resignation"]

1. d4 {[%clk 0:03:01.9]} 1... d5 {[%clk 0:02:55.9]} 2. c4 {[%clk 0:03:03.1]}
2... dxc4 {[%clk 0:02:56]} 3. e3 {[%clk 0:03:02.3]} 3... e5 {[%clk 0:02:54.8]}
4. Bxc4 {[%clk 0:03:01.9]} 4... exd4 {[%clk 0:02:52.3]} 5. exd4 {[%clk
0:03:03.8]} 5... Nf6 {[%clk 0:02:51.7]} 6. Nf3 {[%clk 0:03:05.2]} 6... Bd6
{[%clk 0:02:46]} 7. O-O {[%clk 0:03:06.2]} 7... O-O {[%clk 0:02:33.7]} 8. h3
{[%clk 0:03:07.6]} 8... h6 {[%clk 0:02:32.2]} 9. Nc3 {[%clk 0:03:08.8]} 9... Nc6
{[%clk 0:02:28.2]} 10. a3 {[%clk 0:03:06.7]} 10... Bf5 {[%clk 0:02:12.6]} 11.
Re1 {[%clk 0:03:06.7]} 11... Re8 {[%clk 0:02:10.3]} 12. Be3 {[%clk 0:03:07.2]}
12... Qd7 {[%clk 0:02:04.4]} 13. Bf1 {[%clk 0:03:00]} 13... a6 {[%clk
0:02:01.6]} 14. Rc1 {[%clk 0:02:58.9]} 14... Ne7 {[%clk 0:01:53.2]} 15. Ne5
{[%clk 0:02:58.9]} 15... Bxe5 {[%clk 0:01:48.9]} 16. dxe5 {[%clk 0:03:00.8]}
16... Nfd5 {[%clk 0:01:47.4]} 17. Nxd5 {[%clk 0:02:59.3]} 17... Nxd5 {[%clk
0:01:46.5]} 18. Bd4 {[%clk 0:02:41.1]} 18... Be6 {[%clk 0:01:41.3]} 19. Qf3
{[%clk 0:02:35.7]} 19... c6 {[%clk 0:01:35]} 20. Rcd1 {[%clk 0:02:33.5]} 20...
Qe7 {[%clk 0:01:31.4]} 21. Bd3 {[%clk 0:02:29.7]} 21... Qg5 {[%clk 0:01:27.7]}
22. Be4 {[%clk 0:02:20.2]} 22... Rad8 {[%clk 0:01:17.7]} 23. b4 {[%clk
0:02:21.2]} 23... Ne7 {[%clk 0:01:12.2]} 24. Be3 {[%clk 0:02:13.7]} 24... Rxd1
{[%clk 0:01:04.6]} 25. Qxd1 {[%clk 0:02:15]} 25... Qh4 {[%clk 0:01:01.5]} 26.
Bc2 {[%clk 0:02:02.3]} 26... Nf5 {[%clk 0:00:55]} 27. Bb6 {[%clk 0:02:00.6]}
27... Qg5 {[%clk 0:00:49.1]} 28. Qd3 {[%clk 0:01:45.3]} 28... Bd5 {[%clk
0:00:44]} 29. g3 {[%clk 0:01:14.3]} 29... g6 {[%clk 0:00:25.5]} 30. Kh2 {[%clk
0:01:15.3]} 30... h5 {[%clk 0:00:24.1]} 31. f4 {[%clk 0:01:13.1]} 31... Qe7
{[%clk 0:00:25.1]} 32. Qe2 {[%clk 0:00:49.1]} 32... Qe6 {[%clk 0:00:21.3]} 33.
Qf2 {[%clk 0:00:46.4]} 33... Bb3 {[%clk 0:00:18.3]} 34. Bb1 {[%clk 0:00:46.9]}
34... Qd7 {[%clk 0:00:16]} 35. Re2 {[%clk 0:00:44.1]} 35... Bd5 {[%clk
0:00:13.6]} 36. Rd2 {[%clk 0:00:44]} 36... Qe6 {[%clk 0:00:13.9]} 37. Bc2 {[%clk
0:00:41.9]} 37... Re7 {[%clk 0:00:13.9]} 38. Bd1 {[%clk 0:00:32.3]} 38... Rd7
{[%clk 0:00:14.5]} 39. a4 {[%clk 0:00:22.2]} 39... Be4 {[%clk 0:00:12.1]} 40. g4
{[%clk 0:00:10.8]} 40... Rxd2 {[%clk 0:00:12.1]} 41. Qxd2 {[%clk 0:00:11.9]}
41... hxg4 {[%clk 0:00:12.7]} 42. hxg4 {[%clk 0:00:13.8]} 42... Nh6 {[%clk
0:00:12.6]} 43. Kg3 {[%clk 0:00:12.7]} 43... Bf5 {[%clk 0:00:09.6]} 44. gxf5
{[%clk 0:00:11.8]} 44... Nxf5+ {[%clk 0:00:11.5]} 45. Kh2 {[%clk 0:00:12.1]}
45... g5 {[%clk 0:00:12.8]} 46. Qd8+ {[%clk 0:00:11.1]} 46... Kh7 {[%clk
0:00:12.3]} 47. Qxg5 {[%clk 0:00:12.6]} 47... Qa2+ {[%clk 0:00:10.2]} 48. Qg2
{[%clk 0:00:12.6]} 1-0

[Event "*** Titled Tuesday 3|2 Blitz"]
[Site "Chess.com"]
[Date "2016.09.06"]
[Round "3"]
[White "SCIM"]
[Black "Makalexa"]
[Result "1-0"]
[WhiteElo "2262"]
[BlackElo "2170"]
[TimeControl "180+2"]
[EndTime "11:35:34 PDT"]
[Termination "SCIM won by resignation"]

1. d4 {[%clk 0:02:57.8]} 1... Nf6 {[%clk 0:03:00.3]} 2. c4 {[%clk 0:02:50.5]}
2... g6 {[%clk 0:02:59.4]} 3. Nc3 {[%clk 0:02:50.1]} 3... Bg7 {[%clk 0:02:56.1]}
4. e4 {[%clk 0:02:50.3]} 4... d6 {[%clk 0:02:57.2]} 5. f3 {[%clk 0:02:50.5]}
5... Nc6 {[%clk 0:02:56.1]} 6. Be3 {[%clk 0:02:50.2]} 6... e5 {[%clk 0:02:56]}
7. Nge2 {[%clk 0:02:49.7]} 7... exd4 {[%clk 0:02:53.5]} 8. Nxd4 {[%clk
0:02:50.2]} 8... O-O {[%clk 0:02:54]} 9. Be2 {[%clk 0:02:50.3]} 9... Nd7 {[%clk
0:02:48.5]} 10. O-O {[%clk 0:02:49.1]} 10... Qf6 {[%clk 0:02:46.1]} 11. Nd5
{[%clk 0:02:42.5]} 11... Qd8 {[%clk 0:02:46.8]} 12. Rc1 {[%clk 0:02:37.5]} 12...
Nxd4 {[%clk 0:02:46.6]} 13. Bxd4 {[%clk 0:02:38]} 13... c6 {[%clk 0:02:45.8]}
14. Bxg7 {[%clk 0:02:36.6]} 14... Kxg7 {[%clk 0:02:46.7]} 15. Qd4+ {[%clk
0:02:33.8]} 15... Kg8 {[%clk 0:02:27.6]} 16. Ne3 {[%clk 0:02:29.2]} 16... Qf6
{[%clk 0:02:27]} 17. Qxf6 {[%clk 0:02:22.4]} 17... Nxf6 {[%clk 0:02:27.3]} 18.
Rfd1 {[%clk 0:02:23.9]} 18... Rd8 {[%clk 0:02:18.5]} 19. e5 {[%clk 0:02:22.8]}
19... Ne8 {[%clk 0:02:19.6]} 20. c5 {[%clk 0:02:13.3]} 20... d5 {[%clk
0:02:19.8]} 21. Nc4 {[%clk 0:02:11]} 21... Be6 {[%clk 0:02:08.1]} 22. Na5 {[%clk
0:02:08.6]} 22... Rd7 {[%clk 0:02:01.5]} 23. Rd3 {[%clk 0:02:04]} 23... Rad8
{[%clk 0:01:59.7]} 24. Rd4 {[%clk 0:01:49.4]} 24... Rc7 {[%clk 0:01:36.7]} 25.
b4 {[%clk 0:01:45.5]} 25... Ng7 {[%clk 0:01:35.2]} 26. g4 {[%clk 0:01:44]} 26...
h5 {[%clk 0:01:33.8]} 27. h3 {[%clk 0:01:43.5]} 27... hxg4 {[%clk 0:01:35]} 28.
hxg4 {[%clk 0:01:43.8]} 28... Bc8 {[%clk 0:01:34.8]} 29. Nc4 {[%clk 0:01:43.1]}
29... Ne6 {[%clk 0:01:35.3]} 30. Rcd1 {[%clk 0:01:37]} 30... Nxd4 {[%clk
0:01:33.3]} 31. Rxd4 {[%clk 0:01:37.2]} 31... Kg7 {[%clk 0:01:29.3]} 32. Nd6
{[%clk 0:01:35.5]} 32... b6 {[%clk 0:01:27.7]} 33. f4 {[%clk 0:01:23]} 33... f6
{[%clk 0:01:11.9]} 34. exf6+ {[%clk 0:01:07.4]} 34... Kxf6 {[%clk 0:01:12.8]}
35. Kf2 {[%clk 0:01:07.4]} 35... bxc5 {[%clk 0:01:12.1]} 36. bxc5 {[%clk
0:01:07.9]} 36... Rcd7 {[%clk 0:01:09.7]} 37. g5+ {[%clk 0:00:58.3]} 37... Kg7
{[%clk 0:01:08.3]} 38. Ra4 {[%clk 0:00:48.9]} 38... Re7 {[%clk 0:01:02]} 39. Bd3
{[%clk 0:00:45.1]} 39... Be6 {[%clk 0:00:55.8]} 40. Ra6 {[%clk 0:00:43.3]} 40...
Bc8 {[%clk 0:00:55.6]} 41. Rxc6 {[%clk 0:00:42.3]} 41... Bg4 {[%clk 0:00:41.8]}
42. a4 {[%clk 0:00:38.9]} 42... Bd1 {[%clk 0:00:39.9]} 43. a5 {[%clk 0:00:37.3]}
43... Ba4 {[%clk 0:00:36.2]} 44. Ra6 {[%clk 0:00:34.6]} 44... Be8 {[%clk
0:00:16.7]} 45. f5 {[%clk 0:00:30.7]} 45... Re5 {[%clk 0:00:14]} 46. Nxe8+
{[%clk 0:00:22.5]} 46... Rdxe8 {[%clk 0:00:14.7]} 47. Rxa7+ {[%clk 0:00:23]}
47... Kf8 {[%clk 0:00:13.5]} 48. a6 {[%clk 0:00:21.4]} 48... gxf5 {[%clk
0:00:13.6]} 49. Rh7 {[%clk 0:00:22.2]} 49... f4 {[%clk 0:00:14.4]} 50. a7 {[%clk
0:00:21.5]} 50... Re3 {[%clk 0:00:13.9]} 51. g6 {[%clk 0:00:19.6]} 51... Rxd3
{[%clk 0:00:12.9]} 52. Rh8+ {[%clk 0:00:19.9]} 52... Kg7 {[%clk 0:00:14.1]} 53.
Rxe8 {[%clk 0:00:21.4]} 53... Rd2+ {[%clk 0:00:14.9]} 54. Kf3 {[%clk 0:00:22.1]}
54... Ra2 {[%clk 0:00:15.9]} 55. a8=Q {[%clk 0:00:21.5]} 1-0

[Event "*** Titled Tuesday 3|2 Blitz"]
[Site "Chess.com"]
[Date "2016.09.06"]
[Round "3"]
[White "igorkovalenko"]
[Black "nihalsarin"]
[Result "1-0"]
[WhiteElo "2601"]
[BlackElo "2395"]
[TimeControl "180+2"]
[EndTime "11:35:41 PDT"]
[Termination "igorkovalenko won by resignation"]

1. d4 {[%clk 0:03:01.9]} 1... Nf6 {[%clk 0:03:00.4]} 2. Nf3 {[%clk 0:03:03.6]}
2... e6 {[%clk 0:03:01.5]} 3. e3 {[%clk 0:03:05.1]} 3... b6 {[%clk 0:03:02.7]}
4. Bd3 {[%clk 0:03:07]} 4... Bb7 {[%clk 0:03:04]} 5. O-O {[%clk 0:03:08.6]} 5...
g6 {[%clk 0:03:03.1]} 6. c4 {[%clk 0:03:09.8]} 6... Bg7 {[%clk 0:03:03.9]} 7.
Nc3 {[%clk 0:03:11.2]} 7... d5 {[%clk 0:03:05.2]} 8. b3 {[%clk 0:03:09.9]} 8...
O-O {[%clk 0:03:05.8]} 9. Ba3 {[%clk 0:03:11.2]} 9... Re8 {[%clk 0:03:06.3]} 10.
Rc1 {[%clk 0:03:11.4]} 10... Nbd7 {[%clk 0:03:06.7]} 11. cxd5 {[%clk 0:03:12.4]}
11... Nxd5 {[%clk 0:02:59.9]} 12. Nxd5 {[%clk 0:03:13.5]} 12... Bxd5 {[%clk
0:02:40.3]} 13. Bb5 {[%clk 0:03:12]} 13... a6 {[%clk 0:02:17.6]} 14. Bc6 {[%clk
0:03:12.9]} 14... Bxc6 {[%clk 0:02:18.4]} 15. Rxc6 {[%clk 0:03:14.8]} 15... e5
{[%clk 0:01:37.9]} 16. dxe5 {[%clk 0:03:06]} 16... Nxe5 {[%clk 0:01:24]} 17.
Nxe5 {[%clk 0:02:57.6]} 17... Bxe5 {[%clk 0:01:23.1]} 18. g3 {[%clk 0:02:49.1]}
18... Re6 {[%clk 0:01:11.2]} 19. Rxe6 {[%clk 0:02:46.3]} 19... fxe6 {[%clk
0:01:12]} 20. Qg4 {[%clk 0:02:46]} 20... Qd7 {[%clk 0:01:07]} 21. Rd1 {[%clk
0:02:47]} 21... Bd6 {[%clk 0:01:00.1]} 22. Bb2 {[%clk 0:02:46.1]} 22... Qf7
{[%clk 0:00:50.5]} 23. Qd4 {[%clk 0:02:34.1]} 23... e5 {[%clk 0:00:51.3]} 24.
Qe4 {[%clk 0:02:32.1]} 24... Rf8 {[%clk 0:00:52.4]} 25. Rd2 {[%clk 0:02:32.3]}
25... Qe6 {[%clk 0:00:34.9]} 26. Kg2 {[%clk 0:02:31.8]} 26... h5 {[%clk
0:00:34.6]} 27. h4 {[%clk 0:02:31.8]} 27... Kh7 {[%clk 0:00:35.5]} 28. Qd5
{[%clk 0:02:05.5]} 28... Qf5 {[%clk 0:00:32.9]} 29. Bc3 {[%clk 0:02:00.7]} 29...
e4 {[%clk 0:00:32.6]} 30. Qxf5 {[%clk 0:01:56.8]} 30... gxf5 {[%clk 0:00:33.5]}
31. Rd5 {[%clk 0:01:57.8]} 31... Kg6 {[%clk 0:00:33.1]} 32. f3 {[%clk
0:01:44.8]} 32... Re8 {[%clk 0:00:31.1]} 33. Kf2 {[%clk 0:01:45.2]} 33... Bc5
{[%clk 0:00:27.1]} 34. Bd4 {[%clk 0:01:44.3]} 34... Bxd4 {[%clk 0:00:27.3]} 35.
Rxd4 {[%clk 0:01:46.2]} 35... exf3 {[%clk 0:00:28.2]} 36. Kxf3 {[%clk
0:01:48.1]} 36... Re6 {[%clk 0:00:28.3]} 37. a4 {[%clk 0:01:40.4]} 37... c5
{[%clk 0:00:28.4]} 38. Rd5 {[%clk 0:01:40.9]} 38... Kf6 {[%clk 0:00:27.4]} 39.
Rd8 {[%clk 0:01:40.5]} 39... Kg6 {[%clk 0:00:24.3]} 40. Rg8+ {[%clk 0:01:40.5]}
40... Kf6 {[%clk 0:00:22.2]} 41. Rg5 {[%clk 0:01:39.6]} 41... b5 {[%clk
0:00:23.4]} 42. axb5 {[%clk 0:01:39.9]} 42... axb5 {[%clk 0:00:24.8]} 43. Rxh5
{[%clk 0:01:41.3]} 43... Kg6 {[%clk 0:00:23.9]} 44. Rg5+ {[%clk 0:01:42.5]}
44... Kf6 {[%clk 0:00:24.7]} 45. Rg8 {[%clk 0:01:31.2]} 45... Rc6 {[%clk
0:00:24.2]} 46. h5 {[%clk 0:01:31.6]} 46... Ke5 {[%clk 0:00:21.2]} 47. Rb8
{[%clk 0:01:30.2]} 47... b4 {[%clk 0:00:18.5]} 48. Re8+ {[%clk 0:01:29.1]} 48...
Kf6 {[%clk 0:00:19.3]} 49. Rg8 {[%clk 0:01:26.5]} 49... c4 {[%clk 0:00:17.7]}
50. h6 {[%clk 0:01:23.1]} 50... Rc7 {[%clk 0:00:16.5]} 51. bxc4 {[%clk
0:01:23.1]} 51... b3 {[%clk 0:00:17.9]} 52. Rb8 {[%clk 0:01:23.7]} 52... Kg6
{[%clk 0:00:16.6]} 53. Rxb3 {[%clk 0:01:21.5]} 53... Rxc4 {[%clk 0:00:16]} 54.
Rb6+ {[%clk 0:01:22.5]} 54... Kh7 {[%clk 0:00:17.4]} 55. Rf6 {[%clk 0:01:23.5]}
55... Rc5 {[%clk 0:00:18.4]} 56. Kf4 {[%clk 0:01:25]} 56... Rc3 {[%clk
0:00:19.7]} 57. Rxf5 {[%clk 0:01:25.6]} 57... Kxh6 {[%clk 0:00:21]} 58. e4
{[%clk 0:01:22.6]} 58... Kg6 {[%clk 0:00:22.4]} 59. g4 {[%clk 0:01:22]} 59...
Rc1 {[%clk 0:00:23.1]} 60. Ke5 {[%clk 0:01:21.7]} 60... Rc5+ {[%clk 0:00:24]}
61. Kd6 {[%clk 0:01:22.1]} 61... Rc2 {[%clk 0:00:24.7]} 62. e5 {[%clk
0:01:23.2]} 62... Rg2 {[%clk 0:00:25.6]} 63. e6 {[%clk 0:01:23.4]} 63... Rxg4
{[%clk 0:00:23.2]} 64. Rf2 {[%clk 0:01:23.8]} 64... Re4 {[%clk 0:00:21.4]} 65.
e7 {[%clk 0:01:24.6]} 65... Kg7 {[%clk 0:00:21.5]} 66. Kd7 {[%clk 0:01:25.9]}
66... Rd4+ {[%clk 0:00:22.2]} 67. Ke8 {[%clk 0:01:27.5]} 67... Re4 {[%clk
0:00:23.6]} 68. Kd7 {[%clk 0:01:23.7]} 68... Rd4+ {[%clk 0:00:24.6]} 69. Ke6
{[%clk 0:01:25.2]} 69... Re4+ {[%clk 0:00:25.3]} 70. Kd6 {[%clk 0:01:26.8]}
70... Re1 {[%clk 0:00:26]} 71. Rf8 {[%clk 0:01:25.9]} 71... Rd1+ {[%clk
0:00:25.2]} 72. Kc5 {[%clk 0:01:27.2]} 72... Rc1+ {[%clk 0:00:26.7]} 73. Kd4
{[%clk 0:01:28.7]} 1-0

[Event "*** Titled Tuesday 3|2 Blitz"]
[Site "Chess.com"]
[Date "2016.09.06"]
[Round "3"]
[White "LuckyTiger"]
[Black "maciek_92"]
[Result "1-0"]
[WhiteElo "2573"]
[BlackElo "2518"]
[TimeControl "180+2"]
[EndTime "11:35:42 PDT"]
[Termination "LuckyTiger won by resignation"]

1. e4 {[%clk 0:02:52.2]} 1... c5 {[%clk 0:03:00.8]} 2. c3 {[%clk 0:02:53.1]}
2... Nf6 {[%clk 0:03:00.1]} 3. e5 {[%clk 0:02:54.3]} 3... Nd5 {[%clk 0:03:01.2]}
4. Nf3 {[%clk 0:02:56]} 4... Nc6 {[%clk 0:03:02.1]} 5. Bc4 {[%clk 0:02:57.5]}
5... Nb6 {[%clk 0:03:03]} 6. Bb3 {[%clk 0:02:59.1]} 6... d5 {[%clk 0:03:04.4]}
7. exd6 {[%clk 0:02:59.8]} 7... e6 {[%clk 0:03:05.6]} 8. d4 {[%clk 0:02:59.7]}
8... cxd4 {[%clk 0:03:06.7]} 9. cxd4 {[%clk 0:03:01.6]} 9... Bxd6 {[%clk
0:03:08]} 10. Nc3 {[%clk 0:03:02.5]} 10... O-O {[%clk 0:03:08.8]} 11. O-O {[%clk
0:03:03.5]} 11... Nd5 {[%clk 0:02:56.5]} 12. Qe2 {[%clk 0:02:47.2]} 12... h6
{[%clk 0:02:47.7]} 13. Bd2 {[%clk 0:02:32.3]} 13... Re8 {[%clk 0:02:13]} 14.
Rad1 {[%clk 0:02:22.7]} 14... Bd7 {[%clk 0:01:57.6]} 15. Rfe1 {[%clk 0:01:54.1]}
15... Rc8 {[%clk 0:01:14]} 16. Bc2 {[%clk 0:01:43.4]} 16... Nf6 {[%clk
0:01:08.2]} 17. Bb1 {[%clk 0:01:38.5]} 17... Bf8 {[%clk 0:00:49]} 18. Bf4 {[%clk
0:01:09.2]} 18... Qa5 {[%clk 0:00:49.4]} 19. Ne5 {[%clk 0:01:04.8]} 19... Rcd8
{[%clk 0:00:49.3]} 20. Ne4 {[%clk 0:01:00]} 20... Nxe4 {[%clk 0:00:45.3]} 21.
Qxe4 {[%clk 0:01:01.9]} 21... f5 {[%clk 0:00:46.1]} 22. Qf3 {[%clk 0:00:42.3]}
22... Nxe5 {[%clk 0:00:47]} 23. Bxe5 {[%clk 0:00:35.3]} 23... Bc6 {[%clk
0:00:46.8]} 24. Qg3 {[%clk 0:00:36.1]} 24... Rd7 {[%clk 0:00:43.6]} 25. a3
{[%clk 0:00:33.7]} 25... Qd5 {[%clk 0:00:43]} 26. Bc2 {[%clk 0:00:32.1]} 26...
Bb5 {[%clk 0:00:39.6]} 27. h4 {[%clk 0:00:30.8]} 27... a5 {[%clk 0:00:31.4]} 28.
Qg6 {[%clk 0:00:20.8]} 28... Rc8 {[%clk 0:00:29.7]} 29. Bb1 {[%clk 0:00:21.2]}
29... Re7 {[%clk 0:00:27]} 30. Rc1 {[%clk 0:00:21.4]} 30... Rxc1 {[%clk
0:00:23]} 31. Rxc1 {[%clk 0:00:23.3]} 31... Be8 {[%clk 0:00:23.5]} 32. Qg3
{[%clk 0:00:23.3]} 32... Bc6 {[%clk 0:00:24.7]} 33. Bd3 {[%clk 0:00:23]} 33...
b5 {[%clk 0:00:23.8]} 34. Rc5 {[%clk 0:00:23.6]} 34... Qd7 {[%clk 0:00:24.6]}
35. a4 {[%clk 0:00:22.4]} 35... bxa4 {[%clk 0:00:23.5]} 36. Bc4 {[%clk
0:00:23.6]} 36... Re8 {[%clk 0:00:21.2]} 37. Rxa5 {[%clk 0:00:24.4]} 37... Rc8
{[%clk 0:00:21.5]} 38. Qg6 {[%clk 0:00:23.7]} 38... Bd5 {[%clk 0:00:18.7]} 39.
Bxd5 {[%clk 0:00:22.5]} 39... exd5 {[%clk 0:00:20.6]} 40. Kh2 {[%clk 0:00:23.2]}
40... Rc6 {[%clk 0:00:21.5]} 41. Qg3 {[%clk 0:00:22.8]} 41... Rc8 {[%clk
0:00:22.6]} 42. Qf3 {[%clk 0:00:21.6]} 42... Rd8 {[%clk 0:00:23.9]} 43. g3
{[%clk 0:00:19.7]} 43... Bb4 {[%clk 0:00:21.1]} 44. Ra6 {[%clk 0:00:20.8]} 44...
Qb7 {[%clk 0:00:17.7]} 45. Rxa4 {[%clk 0:00:19.9]} 45... Rf8 {[%clk 0:00:16.4]}
46. Qb3 {[%clk 0:00:19.4]} 46... f4 {[%clk 0:00:17.1]} 47. Rxb4 {[%clk
0:00:18.8]} 47... fxg3+ {[%clk 0:00:18.5]} 48. Bxg3 {[%clk 0:00:18.7]} 48... Qd7
{[%clk 0:00:19]} 49. Rb8 {[%clk 0:00:18.9]} 49... Rxb8 {[%clk 0:00:20.2]} 50.
Qxb8+ {[%clk 0:00:20.8]} 50... Kh7 {[%clk 0:00:22.1]} 51. Qe5 {[%clk 0:00:21.2]}
51... Qb5 {[%clk 0:00:20.1]} 52. Kg2 {[%clk 0:00:21.4]} 52... Qb3 {[%clk
0:00:19.6]} 53. h5 {[%clk 0:00:22.6]} 53... Kg8 {[%clk 0:00:19.6]} 54. Qf5
{[%clk 0:00:23.2]} 54... Qc4 {[%clk 0:00:18.9]} 55. Be5 {[%clk 0:00:23.8]} 55...
Qb5 {[%clk 0:00:17.6]} 56. Qg4 {[%clk 0:00:24]} 56... Qb7 {[%clk 0:00:18.1]} 57.
b4 {[%clk 0:00:25.1]} 57... Kh7 {[%clk 0:00:18.5]} 58. b5 {[%clk 0:00:26.1]}
58... Qf7 {[%clk 0:00:19.6]} 59. Qg6+ {[%clk 0:00:26.3]} 59... Qxg6+ {[%clk
0:00:20.8]} 60. hxg6+ {[%clk 0:00:28.2]} 1-0

[Event "*** Titled Tuesday 3|2 Blitz"]
[Site "Chess.com"]
[Date "2016.09.06"]
[Round "3"]
[White "DeviatkinAndrey"]
[Black "Aygehovit1992"]
[Result "1/2-1/2"]
[WhiteElo "2597"]
[BlackElo "2409"]
[TimeControl "180+2"]
[EndTime "11:36:37 PDT"]
[Termination "Game drawn by repetition"]

1. e4 {[%clk 0:03:02]} 1... c5 {[%clk 0:03:00.6]} 2. c3 {[%clk 0:03:02.1]} 2...
g6 {[%clk 0:02:58.2]} 3. d4 {[%clk 0:03:02.4]} 3... cxd4 {[%clk 0:02:57.9]} 4.
cxd4 {[%clk 0:03:03]} 4... d5 {[%clk 0:02:59.6]} 5. e5 {[%clk 0:02:59.9]} 5...
Bg7 {[%clk 0:03:00.5]} 6. Be3 {[%clk 0:02:59.7]} 6... a6 {[%clk 0:03:01.6]} 7.
Qd2 {[%clk 0:03:00.4]} 7... Nc6 {[%clk 0:03:02.8]} 8. Nc3 {[%clk 0:02:37.5]}
8... f6 {[%clk 0:03:01.4]} 9. f4 {[%clk 0:01:56.5]} 9... Nh6 {[%clk 0:03:00.6]}
10. Nf3 {[%clk 0:01:57.8]} 10... Bg4 {[%clk 0:02:49.6]} 11. Be2 {[%clk 0:01:56]}
11... O-O {[%clk 0:02:43.8]} 12. O-O {[%clk 0:01:49.4]} 12... Nf5 {[%clk
0:02:33.7]} 13. Bf2 {[%clk 0:01:50.2]} 13... fxe5 {[%clk 0:02:34.8]} 14. Nxe5
{[%clk 0:01:34.9]} 14... Nxe5 {[%clk 0:02:32.4]} 15. fxe5 {[%clk 0:01:33.9]}
15... Bxe2 {[%clk 0:02:31.7]} 16. Qxe2 {[%clk 0:01:19.4]} 16... e6 {[%clk
0:02:31.7]} 17. Rac1 {[%clk 0:01:18.9]} 17... Rc8 {[%clk 0:02:30.3]} 18. Rc2
{[%clk 0:01:13.1]} 18... Rc4 {[%clk 0:02:23.8]} 19. Rd1 {[%clk 0:01:12.3]} 19...
Qc7 {[%clk 0:01:56.7]} 20. g4 {[%clk 0:01:03.6]} 20... Ne7 {[%clk 0:01:47.2]}
21. Be3 {[%clk 0:01:04.8]} 21... b5 {[%clk 0:01:42.2]} 22. a3 {[%clk 0:01:03.9]}
22... Rc8 {[%clk 0:01:27.7]} 23. Qd3 {[%clk 0:01:02.2]} 23... Nc6 {[%clk
0:01:26.5]} 24. Rf2 {[%clk 0:00:55.9]} 24... Rf8 {[%clk 0:00:39.7]} 25. Rxf8+
{[%clk 0:00:50.9]} 25... Bxf8 {[%clk 0:00:41.6]} 26. Ne2 {[%clk 0:00:51.1]}
26... b4 {[%clk 0:00:24.1]} 27. b3 {[%clk 0:00:49.8]} 27... Nxe5 {[%clk
0:00:25]} 28. dxe5 {[%clk 0:00:48]} 28... Rxg4+ {[%clk 0:00:26.9]} 29. Ng3
{[%clk 0:00:46.9]} 29... bxa3 {[%clk 0:00:28.8]} 30. Qxa6 {[%clk 0:00:47.4]}
30... Qxe5 {[%clk 0:00:26]} 31. Bf2 {[%clk 0:00:47.8]} 31... h5 {[%clk 0:00:22]}
32. Re1 {[%clk 0:00:48.3]} 32... Qf6 {[%clk 0:00:13.2]} 33. Rxe6 {[%clk
0:00:48.8]} 33... Qf7 {[%clk 0:00:14.7]} 34. h3 {[%clk 0:00:26.3]} 34... Rf4
{[%clk 0:00:15.1]} 35. Re2 {[%clk 0:00:26.3]} 35... h4 {[%clk 0:00:14.8]} 36.
Nf1 {[%clk 0:00:27.4]} 36... Qf5 {[%clk 0:00:13]} 37. Nh2 {[%clk 0:00:21.7]}
37... Rxf2 {[%clk 0:00:09.4]} 38. Rxf2 {[%clk 0:00:19.6]} 38... Bc5 {[%clk
0:00:10.5]} 39. Ng4 {[%clk 0:00:20]} 39... Bxf2+ {[%clk 0:00:11.7]} 40. Nxf2
{[%clk 0:00:20.8]} 40... Qb1+ {[%clk 0:00:12.7]} 41. Kg2 {[%clk 0:00:21.2]}
41... a2 {[%clk 0:00:11.7]} 42. Qc8+ {[%clk 0:00:16.5]} 42... Kf7 {[%clk
0:00:12.3]} 43. Qd7+ {[%clk 0:00:17.4]} 43... Kg8 {[%clk 0:00:12.1]} 44. Qe8+
{[%clk 0:00:17.7]} 44... Kg7 {[%clk 0:00:13.6]} 45. Qe7+ {[%clk 0:00:18.8]}
45... Kg8 {[%clk 0:00:14.6]} 46. Qe6+ {[%clk 0:00:18.4]} 46... Kg7 {[%clk
0:00:15.6]} 47. Qe5+ {[%clk 0:00:18.4]} 47... Kf7 {[%clk 0:00:15.5]} 48. Qxd5+
{[%clk 0:00:18.4]} 48... Ke7 {[%clk 0:00:16.4]} 49. Qe5+ {[%clk 0:00:19.2]}
49... Kd7 {[%clk 0:00:17.9]} 50. Qb5+ {[%clk 0:00:19.9]} 50... Kd6 {[%clk
0:00:17.5]} 51. Qb4+ {[%clk 0:00:20.5]} 51... Kd7 {[%clk 0:00:13.6]} 52. Qd4+
{[%clk 0:00:21.1]} 52... Kc6 {[%clk 0:00:14.3]} 53. Qc4+ {[%clk 0:00:21.2]}
53... Kd7 {[%clk 0:00:15.7]} 54. Qd5+ {[%clk 0:00:22.1]} 54... Kc7 {[%clk
0:00:17.2]} 55. Qe5+ {[%clk 0:00:23]} 55... Kb6 {[%clk 0:00:16.4]} 56. Qd4+
{[%clk 0:00:23.7]} 56... Kc6 {[%clk 0:00:17.3]} 57. Qc4+ {[%clk 0:00:21.8]}
57... Kd7 {[%clk 0:00:18]} 58. Qd5+ {[%clk 0:00:20.9]} 58... Ke7 {[%clk
0:00:19.1]} 59. Qe5+ {[%clk 0:00:21.3]} 59... Kd7 {[%clk 0:00:19.9]} 60. Qd5+
{[%clk 0:00:22.2]} 60... Kc7 {[%clk 0:00:20.7]} 61. Qc5+ {[%clk 0:00:20.8]}
61... Kd7 {[%clk 0:00:21.5]} 62. Qd4+ {[%clk 0:00:21.3]} 62... Kc6 {[%clk
0:00:21.7]} 63. Qc4+ {[%clk 0:00:19.2]} 63... Kd6 {[%clk 0:00:22.3]} 64. Qd4+
{[%clk 0:00:16.5]} 64... Ke6 {[%clk 0:00:22.4]} 65. Qc4+ {[%clk 0:00:16.9]}
65... Kd6 {[%clk 0:00:22]} 66. Qd4+ {[%clk 0:00:17.1]} 66... Kc6 {[%clk
0:00:23.1]} 67. Qc4+ {[%clk 0:00:17.4]} 67... Kb6 {[%clk 0:00:22.6]} 68. Qb4+
{[%clk 0:00:18]} 68... Kc6 {[%clk 0:00:23.2]} 69. Qc4+ {[%clk 0:00:18.4]}
1/2-1/2